bitfinex-derivatives/quotes_BNBF0:USTF0_20250904
["timestamp","ask_amount","ask_price","bid_price","bid_amount"]
[1757010744650,0.20655271,842.86,841.03,0.79627602]
[1757010744651,0.79118287,842.46,841.03,0.79627602]
[1757010744849,0.79118287,842.45,841.03,0.79627602]
[1757010745351,0.79118287,842.52,840.99,0.79627602]
[1757010745947,0.79118287,842.43,840.98,0.79627602]
[1757010747152,0.79118287,842.43,840.99,0.79627602]
[1757010747447,0.79118287,842.44,841.0,0.79627602]
[1757010748249,0.79118287,842.43,841.0,0.79627602]
[1757010748551,0.79118287,842.43,841.01,0.79627602]
[1757010748952,0.79118287,842.45,840.99,0.79627602]
[1757010749350,0.79118287,842.47,841.02,0.79627602]
[1757010749752,0.79118287,842.48,841.04,0.79627602]
[1757010749953,0.79118287,842.51,841.02,0.79627602]
[1757010750252,0.79118287,842.5,841.01,0.79627602]
[1757010751350,0.79118287,842.43,841.06,0.79627602]
[1757010752454,0.79118287,842.43,841.07,0.79627602]
[1757010753353,0.79118287,842.42,841.08,0.79627602]
[1757010753955,0.20655271,842.86,841.09,0.79627602]
[1757010753956,0.79118287,842.43,841.09,0.79627602]
[1757010754257,0.79118287,842.43,841.1,0.79627602]
[1757010755252,0.79118287,842.42,841.1,0.79627602]
[1757010755555,0.79118287,842.41,841.1,0.79627602]
[1757010755751,0.79118287,842.41,841.09,0.79627602]
[1757010755956,0.79118287,842.42,841.09,0.79627602]
[1757010756355,0.79118287,842.42,841.1,0.79627602]
[1757010757256,0.79118287,842.41,841.11,0.79627602]
[1757010757759,0.79118287,842.48,841.17,0.79627602]
[1757010758159,0.79118287,842.48,840.67,1.594463]
[1757010758160,0.79118287,842.47,841.18,0.79627602]
[1757010758361,0.79118287,842.43,841.21,0.79627602]
[1757010759158,0.79118287,842.42,841.22,0.79627602]
[1757010759757,0.79118287,842.41,841.23,0.79627602]
[1757010760362,0.79118287,842.41,841.24,0.79627602]
[1757010761162,0.79118287,842.44,841.26,0.79627602]
[1757010761467,0.79118287,842.46,841.28,0.79627602]
[1757010762364,0.79118287,842.46,841.29,0.79627602]
[1757010762562,0.79118287,842.49,841.34,0.79627602]
[1757010763159,0.79118287,842.48,841.34,0.79627602]
[1757010763360,0.79118287,842.5,841.35,0.79627602]
[1757010764363,1.0598737,842.71,841.14,1.0629753]
[1757010764364,0.79118287,842.49,841.36,0.79627602]
[1757010766266,0.79118287,842.49,841.37,0.79627602]
[1757010766761,0.79118287,842.5,841.36,0.79627602]
[1757010767862,0.79118287,842.51,841.36,0.79627602]
[1757010768464,0.79118287,842.52,841.36,0.79627602]
[1757010769168,0.79118287,842.52,841.35,0.79627602]
[1757010770268,0.79118287,842.49,841.37,0.79627602]
[1757010770968,0.79118287,842.48,841.38,0.79627602]
[1757010771265,0.79118287,842.48,841.37,0.79627602]
[1757010772366,0.79118287,842.46,841.39,0.79627602]
[1757010773171,0.20655271,842.86,841.38,0.79627602]
[1757010773172,0.79118287,842.48,841.38,0.79627602]
[1757010774270,0.79118287,842.48,841.37,0.79627602]
[1757010774975,0.79118287,842.48,841.38,0.79627602]
[1757010775169,0.79118287,842.48,841.37,0.79627602]
[1757010776072,0.79118287,842.5,841.36,0.79627602]
[1757010776476,0.79118287,842.5,841.35,0.79627602]
[1757010776672,0.79118287,842.49,841.36,0.79627602]
[1757010777371,0.79118287,842.47,841.38,0.79627602]
[1757010777675,0.79118287,842.37,841.44,0.79627602]
[1757010777872,0.79118287,842.39,841.46,0.79627602]
[1757010778279,0.79118287,842.41,841.47,0.79627602]
[1757010778472,0.79118287,842.4,841.47,0.79627602]
[1757010778672,0.79118287,842.41,841.47,0.79627602]
[1757010781578,0.79118287,842.47,841.5,0.79627602]
[1757010781780,0.79118287,842.55,841.46,0.79627602]
[1757010782077,0.79118287,842.69,841.56,0.79627602]
[1757010782378,0.79118287,842.67,841.58,0.79627602]
[1757010783481,0.79118287,842.66,841.61,0.79627602]
[1757010784385,0.79118287,842.64,841.64,0.79627602]
[1757010785382,0.79118287,842.63,841.65,0.79627602]
[1757010786080,0.79118287,842.6,841.67,0.79627602]
[1757010786285,0.79118287,842.61,841.62,0.79627602]
[1757010786584,0.79118287,842.59,841.64,0.79627602]
[1757010787084,0.79118287,842.57,841.65,0.79627602]
[1757010788185,0.79118287,842.56,841.66,0.79627602]
[1757010789284,0.79118287,842.57,841.65,0.79627602]
[1757010790688,0.79118287,842.58,841.64,0.79627602]
[1757010790883,0.79118287,842.59,841.65,0.79627602]
[1757010791083,0.79118287,842.59,841.27,1.594463]
[1757010791084,0.79118287,842.61,841.7,0.79627602]
[1757010791288,0.79118287,842.62,841.71,0.79627602]
[1757010791586,0.79118287,842.62,841.78,0.79627602]
[1757010791783,0.79118287,842.62,841.79,0.79627602]
[1757010792389,0.79118287,842.63,841.78,0.79627602]
[1757010793387,0.79118287,842.64,841.77,0.79627602]
[1757010794289,0.79118287,842.64,841.76,0.79627602]
[1757010795190,0.79118287,842.69,841.74,0.79627602]
[1757010795395,0.79118287,842.69,841.72,0.79627602]
[1757010795592,0.20655271,842.86,841.74,0.79627602]
[1757010795593,0.79118287,842.71,841.74,0.79627602]
[1757010796294,0.79118287,842.72,841.73,0.79627602]
[1757010796595,0.79118287,842.71,841.73,0.79627602]
[1757010796896,0.79118287,842.73,841.72,0.79627602]
[1757010797098,0.79118287,842.79,841.75,0.79627602]
[1757010797294,0.79118287,842.81,841.75,0.79627602]
[1757010797695,0.79118287,842.84,841.77,0.79627602]
[1757010798299,0.99773558,842.86,841.78,0.79627602]
[1757010799303,0.99773558,842.86,841.77,0.79627602]
[1757010799601,0.20655271,842.86,841.77,0.79627602]
[1757010800196,0.20655271,842.86,841.36,1.594463]
[1757010800197,0.20655271,842.86,841.78,0.79627602]
[1757010800499,0.20655271,842.86,841.77,0.79627602]
[1757010801302,0.20655271,842.86,841.76,0.79627602]
[1757010802100,0.20655271,842.86,840.54,2.6574383]
[1757010802101,0.99773558,842.86,841.78,0.79627602]
[1757010802401,0.20655271,842.86,841.77,0.79627602]
[1757010802600,0.99773558,842.86,841.77,0.79627602]
[1757010803098,0.79118287,842.85,841.76,0.79627602]
[1757010803300,0.99773558,842.86,841.75,0.79627602]
[1757010804097,0.99773558,842.86,841.76,0.79627602]
[1757010804396,0.99773558,842.86,841.75,0.79627602]
[1757010805399,0.99773558,842.86,841.56,1.0629753]
[1757010805400,0.20655271,842.86,841.73,0.79627602]
[1757010806202,0.20655271,842.86,841.72,0.79627602]
[1757010806396,0.20655271,842.86,841.73,0.79627602]
[1757010806600,0.20655271,842.86,841.72,0.79627602]
[1757010807001,0.20655271,842.86,841.73,0.79627602]
[1757010807503,0.20655271,842.86,841.74,0.79627602]
[1757010808400,0.20655271,842.86,841.73,0.79627602]
[1757010808802,0.20655271,842.86,841.74,0.79627602]
[1757010809301,0.20655271,842.86,841.73,0.79627602]
[1757010813304,0.20655271,842.86,841.74,0.79627602]
[1757010814405,0.20655271,842.86,840.26,0.2068363]
[1757010814406,0.20655271,842.86,841.81,0.79627602]
[1757010814604,0.20655271,842.86,841.82,0.79627602]
[1757010815404,0.20655271,842.86,841.83,0.79627602]
[1757010817809,0.20655271,842.86,841.79,0.79627602]
[1757010818305,0.20655271,842.86,841.8,0.79627602]
[1757010819108,0.20655271,842.86,841.78,0.79627602]
[1757010821306,0.20655271,842.86,841.79,0.79627602]
[1757010822005,0.20655271,842.86,841.8,0.79627602]
[1757010822409,0.20655271,842.86,841.81,0.79627602]
[1757010824008,0.20655271,842.86,841.83,0.79627602]
[1757010824214,0.20655271,842.86,841.84,0.79627602]
[1757010824812,0.20655271,842.86,841.85,0.79627602]
[1757010827512,0.20655271,842.86,841.86,0.79627602]
[1757010827717,0.20655271,842.86,841.9,0.79627602]
[1757010828318,0.20655271,842.86,841.91,0.79627602]
[1757010831220,0.20655271,842.86,841.92,0.79627602]
[1757010832318,0.20655271,842.86,841.93,0.79627602]
[1757010833319,0.20655271,842.86,841.94,0.79627602]
[1757010833723,0.20655271,842.86,841.95,0.79627602]
[1757010833923,0.20655271,842.86,841.96,0.79627602]
[1757010834421,0.20655271,842.86,841.97,0.79627602]
[1757010835222,0.20655271,842.86,841.98,0.79627602]
[1757010836420,0.99773558,842.86,841.99,0.79627602]
[1757010836724,0.79118287,842.85,842.0,0.79627602]
[1757010837523,0.79118287,842.84,842.0,0.79627602]
[1757010837819,0.79118287,842.84,842.01,0.79627602]
[1757010838323,0.79118287,842.81,842.0,0.79627602]
[1757010839220,0.79118287,842.78,842.02,0.79627602]
[1757010841425,0.79118287,842.76,842.04,0.79627602]
[1757010842928,0.79118287,842.77,842.03,0.79627602]
[1757010843124,0.79118287,842.77,842.02,0.79627602]
[1757010843326,0.79118287,842.78,842.03,0.79627602]
[1757010844329,0.79118287,842.77,842.03,0.79627602]
[1757010844629,0.79118287,842.78,842.03,0.79627602]
[1757010845235,0.79118287,842.83,842.0,0.79627602]
[1757010845429,0.79118287,842.73,842.04,0.79627602]
[1757010845625,0.79118287,842.65,841.91,0.79627602]
[1757010846325,0.79118287,842.64,841.92,0.79627602]
[1757010848232,0.79118287,842.63,841.93,0.79627602]
[1757010849229,0.79118287,842.63,841.94,0.79627602]
[1757010849431,0.20656681,842.46,841.94,0.79627602]
[1757010849831,0.20656681,842.46,841.95,0.79627602]
[1757010850127,0.79118287,842.75,842.0,0.79627602]
[1757010850329,0.79118287,842.78,842.07,0.79627602]
[1757010850530,0.20654167,842.57,842.07,0.79627602]
[1757010851430,0.20654167,842.57,842.08,0.79627602]
[1757010854333,0.20654167,842.57,842.09,0.79627602]
[1757010855130,0.20654167,842.57,842.07,0.79627602]
[1757010855333,0.20654167,842.57,842.04,0.79627602]
[1757010856334,0.20654167,842.57,842.05,0.79627602]
[1757010860444,0.20654167,842.57,842.04,0.79627602]
[1757010860641,0.20654167,842.57,842.05,0.79627602]
[1757010865544,0.20654167,842.57,842.04,0.79627602]
[1757010867248,0.20654167,842.57,842.0,0.79627602]
[1757010867547,0.20654167,842.57,841.97,0.79627602]
[1757010867745,0.20654167,842.57,841.96,0.79627602]
[1757010874053,0.20654167,842.57,841.95,0.79627602]
[1757010874259,0.20654167,842.57,841.98,0.79627602]
[1757010875860,0.20654167,842.57,842.02,0.79627602]
[1757010876361,0.20654167,842.57,842.03,0.79627602]
[1757010876559,0.20654167,842.57,842.04,0.79627602]
[1757010877262,0.20654167,842.57,842.07,0.79627602]
[1757010880360,0.20654167,842.57,842.08,0.79627602]
[1757010882768,0.20654167,842.57,842.07,0.79627602]
[1757010882965,0.20654167,842.57,842.13,0.79627602]
[1757010887772,0.20654167,842.57,842.12,0.79627602]
[1757010891175,0.20654167,842.57,842.11,0.79627602]
[1757010892876,0.20654167,842.57,841.05,2.6574383]
[1757010892877,0.20654167,842.57,842.12,0.79627602]
[1757010895576,0.20654167,842.57,842.18,0.79627602]
[1757010897280,0.20654167,842.57,842.17,0.79627602]
[1757010898278,0.20654167,842.57,842.16,0.79627602]
[1757010898778,0.20654167,842.57,842.17,0.79627602]
[1757010898982,0.20654167,842.57,842.16,0.79627602]
[1757010899182,0.20654167,842.57,842.15,0.79627602]
[1757010901485,0.20654167,842.57,842.14,0.79627602]
[1757010902282,0.20654167,842.57,842.13,0.79627602]
[1757010903787,0.20654167,842.57,842.14,0.79627602]
[1757010903986,0.20654167,842.57,841.95,0.79627602]
[1757010904185,0.20654167,842.57,841.94,0.79627602]
[1757010904986,0.20654167,842.57,841.9,0.79627602]
[1757010908486,0.20654167,842.57,841.93,0.79627602]
[1757010909386,0.20654167,842.57,841.94,0.79627602]
[1757010911090,0.20654167,842.57,841.95,0.79627602]
[1757010911290,0.20654167,842.57,841.94,0.79627602]
[1757010912191,0.20654167,842.57,841.95,0.79627602]
[1757010912489,0.20654167,842.57,841.94,0.79627602]
[1757010913887,0.20654167,842.57,841.95,0.79627602]
[1757010914890,0.20654167,842.57,842.03,0.79627602]
[1757010915490,0.20654167,842.57,842.04,0.79627602]
[1757010915690,0.20654167,842.57,842.02,0.79627602]
[1757010916091,0.20654167,842.57,842.01,0.79627602]
[1757010919993,0.20654167,842.57,842.02,0.79627602]
[1757010921294,0.20654167,842.57,841.99,0.79627602]
[1757010924693,0.20654167,842.57,842.02,0.79627602]
[1757010924994,0.20654167,842.57,841.98,0.79627602]
[1757010925792,0.20654167,842.57,841.99,0.79627602]
[1757010927696,0.20654167,842.57,842.0,0.79627602]
[1757010931097,0.20654167,842.57,842.04,0.79627602]
[1757010934697,0.20654167,842.57,842.05,0.79627602]
[1757010934898,0.20654167,842.57,842.06,0.79627602]
[1757010935404,0.20654167,842.57,842.01,0.79627602]
[1757010935897,0.20654167,842.57,842.0,0.79627602]
[1757010936402,0.20654167,842.57,841.98,0.79627602]
[1757010937203,0.20654167,842.57,841.99,0.79627602]
[1757010939900,0.20654167,842.57,842.01,0.79627602]
[1757010940299,0.20654167,842.57,842.0,0.79627602]
[1757010940803,0.20654167,842.57,841.99,0.79627602]
[1757010941505,0.20654167,842.57,842.01,0.79627602]
[1757010945303,0.20654167,842.57,842.03,0.79627602]
[1757010946503,0.20654167,842.57,842.06,0.79627602]
[1757010947003,0.20654167,842.57,842.08,0.79627602]
[1757010948107,0.20654167,842.57,842.14,0.79627602]
[1757010949105,0.79118287,843.08,841.99,0.79627602]
[1757010949309,0.79118287,843.08,840.62,3.7204137]
[1757010949310,0.79118287,843.15,842.05,0.79627602]
[1757010949507,0.20650062,842.71,842.06,0.79627602]
[1757010949705,0.79118287,843.15,842.06,0.79627602]
[1757010949906,0.20648652,842.71,842.06,0.79627602]
[1757010950204,0.79118287,843.16,842.05,0.79627602]
[1757010950405,0.20648652,842.71,842.05,0.79627602]
[1757010950707,0.79118287,843.16,842.05,0.79627602]
[1757010950907,0.20648775,842.7,842.05,0.79627602]
[1757010951107,0.20648775,842.7,842.04,0.79627602]
[1757010951306,0.79118287,843.16,842.04,0.79627602]
[1757010951510,0.20648836,842.7,842.04,0.79627602]
[1757010951710,0.79118287,843.16,842.04,0.79627602]
[1757010952010,0.20648836,842.7,842.04,0.79627602]
[1757010952210,0.79118287,843.16,842.04,0.79627602]
[1757010952506,0.20648836,842.7,842.04,0.79627602]
[1757010952805,0.79118287,843.16,842.04,0.79627602]
[1757010953010,0.20648836,842.7,842.04,0.79627602]
[1757010953313,0.79118287,843.16,842.03,0.79627602]
[1757010953512,0.20648836,842.7,842.03,0.79627602]
[1757010953805,0.79118287,843.17,842.04,0.79627602]
[1757010954007,0.20648898,842.7,842.04,0.79627602]
[1757010954406,0.79118287,843.24,842.1,0.79627602]
[1757010954710,0.20647427,842.81,842.1,0.79627602]
[1757010954911,0.79118287,843.24,842.1,0.79627602]
[1757010955208,0.20646631,842.81,842.09,0.79627602]
[1757010955606,0.79118287,843.24,842.09,0.79627602]
[1757010955806,0.20646692,842.81,842.09,0.79627602]
[1757010956109,0.79118287,843.25,842.09,0.79627602]
[1757010956308,0.20646692,842.81,842.09,0.79627602]
[1757010956513,0.79118287,843.25,842.09,0.79627602]
[1757010956711,0.79118287,843.1,842.29,0.79627602]
[1757010956911,0.20646631,842.81,842.29,0.79627602]
[1757010957110,0.79118287,843.11,842.28,0.79627602]
[1757010957408,0.20646325,842.81,842.28,0.79627602]
[1757010957607,0.79118287,843.11,842.28,0.79627602]
[1757010957908,0.20646325,842.81,842.28,0.79627602]
[1757010958112,0.79118287,843.11,841.08,2.6574383]
[1757010958113,0.79118287,843.12,842.27,0.79627602]
[1757010958317,0.20645835,842.85,842.27,0.79627602]
[1757010959118,0.20645835,842.85,842.26,0.79627602]
[1757010959620,0.20645835,842.85,842.25,0.79627602]
[1757010961319,0.20645835,842.85,842.24,0.79627602]
[1757010961517,0.20645835,842.85,842.23,0.79627602]
[1757010962421,0.20645835,842.85,842.22,0.79627602]
[1757010962618,0.20645835,842.85,842.24,0.79627602]
[1757010963420,0.20645835,842.85,842.23,0.79627602]
[1757010964217,0.20645835,842.85,842.25,0.79627602]
[1757010965320,0.20645835,842.85,842.24,0.79627602]
[1757010965522,0.20645835,842.85,842.22,0.79627602]
[1757010966719,0.20645835,842.85,842.23,0.79627602]
[1757010968223,0.20645835,842.85,842.22,0.79627602]
[1757010969319,0.20645835,842.85,842.21,0.79627602]
[1757010970522,0.20645835,842.85,842.2,0.79627602]
[1757010970920,0.20645835,842.85,842.18,0.79627602]
[1757010971321,0.20645835,842.85,842.19,0.79627602]
[1757010972224,0.20645835,842.85,842.18,0.79627602]
[1757010974527,0.20645835,842.85,842.17,0.79627602]
[1757010975331,0.20645835,842.85,842.18,0.79627602]
[1757010975529,0.20645835,842.85,842.14,0.79627602]
[1757010975730,0.20645835,842.85,842.12,0.79627602]
[1757010976726,0.20645835,842.85,842.04,0.79627602]
[1757010976926,0.79118287,843.86,842.57,0.79627602]
[1757010977229,0.20641243,843.26,842.57,0.79627602]
[1757010977428,0.20641243,843.26,840.8,2.6574383]
[1757010977429,0.79118287,843.89,842.53,0.79627602]
[1757010977629,0.2063445,843.54,842.53,0.79627602]
[1757010977925,0.2063445,843.54,842.55,0.79627602]
[1757010978630,0.2063445,843.54,840.87,2.6574383]
[1757010978631,0.2063445,843.54,842.52,0.79627602]
[1757010979429,0.2063445,843.54,842.49,0.79627602]
[1757010979630,0.2063445,843.54,842.5,0.79627602]
[1757010980330,0.2063445,843.54,842.47,0.79627602]
[1757010981426,0.2063445,843.54,842.45,0.79627602]
[1757010982130,0.2063445,843.54,842.44,0.79627602]
[1757010982433,0.2063445,843.54,842.42,0.79627602]
[1757010983632,0.2063445,843.54,842.51,0.79627602]
[1757010984332,0.2063445,843.54,842.49,0.79627602]
[1757010984530,0.2063445,843.54,842.48,0.79627602]
[1757010984937,0.79118287,843.98,842.48,0.79627602]
[1757010985434,0.79118287,843.99,842.46,0.79627602]
[1757010986132,0.79118287,844.0,842.47,0.79627602]
[1757010986336,0.79118287,844.01,842.48,0.79627602]
[1757010986632,0.79118287,844.02,842.46,0.79627602]
[1757010987032,0.79118287,844.03,842.46,0.79627602]
[1757010987538,0.79118287,844.04,842.45,0.79627602]
[1757010988438,0.79118287,844.04,842.43,0.79627602]
[1757010989134,0.79118287,844.04,842.46,0.79627602]
[1757010989334,0.79118287,844.17,842.63,0.79627602]
[1757010989535,0.79118287,844.19,842.6,0.79627602]
[1757010990334,0.79118287,844.18,842.6,0.79627602]
[1757010990534,0.79118287,844.2,842.58,0.79627602]
[1757010991440,0.79118287,844.21,842.57,0.79627602]
[1757010991840,0.79118287,844.22,842.57,0.79627602]
[1757010992440,0.79118287,844.23,842.56,0.79627602]
[1757010992940,0.79118287,844.24,842.57,0.79627602]
[1757010993339,0.79118287,844.24,842.36,1.0629753]
[1757010993340,0.79118287,844.25,842.55,0.79627602]
[1757010993539,0.79118287,844.25,842.56,0.79627602]
[1757010994443,0.79118287,844.26,842.54,0.79627602]
[1757010995041,0.79118287,844.21,842.58,0.79627602]
[1757010995241,0.20626072,843.84,842.7,0.79627602]
[1757010996438,0.20626072,843.84,842.68,0.79627602]
[1757010996838,0.20626072,843.84,842.69,0.79627602]
[1757010997038,0.20626072,843.84,842.73,0.79627602]
[1757010997539,0.20626072,843.84,842.71,0.79627602]
[1757010998143,0.20626072,843.84,842.72,0.79627602]
[1757010998543,0.20626072,843.84,842.7,0.79627602]
[1757010999038,0.20626072,843.84,842.47,0.79627602]
[1757010999439,0.20626072,843.84,842.46,0.78834159]
[1757011000243,0.20626072,843.84,842.47,0.78834159]
[1757011000543,0.20626072,843.84,842.46,0.78834159]
[1757011001046,0.20626072,843.84,842.47,0.78834159]
[1757011001247,0.20626072,843.84,842.51,0.78834159]
[1757011001447,0.20626072,843.84,842.16,1.0629753]
[1757011001448,0.20626072,843.84,842.5,0.78834159]
[1757011001648,0.20626072,843.84,842.67,0.78834159]
[1757011001849,0.20626072,843.84,842.71,0.78834159]
[1757011002050,0.78711768,844.57,842.78,0.78834159]
[1757011002250,0.20620695,843.95,842.79,0.78834159]
[1757011002452,0.78711768,844.62,842.86,0.78834159]
[1757011002749,0.2062045,843.95,842.86,0.78834159]
[1757011002949,0.78711768,844.62,842.86,0.78834159]
[1757011003346,0.20619595,843.95,842.86,0.78834159]
[1757011003550,2.6496844,845.61,842.84,0.78834159]
[1757011003551,0.78711768,844.64,842.84,0.78834159]
[1757011003752,0.20619595,843.95,842.84,0.78834159]
[1757011004147,0.78711768,844.63,842.85,0.78834159]
[1757011004352,0.20619595,843.95,842.85,0.78834159]
[1757011004554,0.78711768,844.64,842.84,0.78834159]
[1757011004752,0.20619595,843.95,842.84,0.78834159]
[1757011005153,0.78711768,844.63,842.84,0.78834159]
[1757011005356,0.20619595,843.95,842.83,0.78834159]
[1757011005555,0.78711768,844.65,842.83,0.78834159]
[1757011005858,0.20619595,843.95,842.82,0.78834159]
[1757011006053,0.78711768,844.67,842.82,0.78834159]
[1757011006253,0.78711768,844.66,842.82,0.78834159]
[1757011006457,0.20619534,843.95,842.81,0.78834159]
[1757011006658,0.78711768,844.67,842.81,0.78834159]
[1757011006858,0.20619595,843.95,842.81,0.78834159]
[1757011007158,0.78711768,844.67,842.82,0.78834159]
[1757011007360,0.20619595,843.95,842.81,0.78834159]
[1757011007859,0.20619534,843.95,842.81,0.78834159]
[1757011008159,0.20619534,843.95,842.82,0.78834159]
[1757011008357,0.20619534,843.95,842.81,0.78834159]
[1757011008658,0.20619534,843.95,842.84,0.78834159]
[1757011009355,0.20619534,843.95,842.82,0.78834159]
[1757011009556,0.20619534,843.95,842.81,0.78834159]
[1757011009955,0.20619534,843.95,842.8,0.78834159]
[1757011010154,0.20619534,843.95,842.81,0.78834159]
[1757011010359,0.20619534,843.95,842.8,0.78834159]
[1757011010560,0.20619534,843.95,842.75,0.78834159]
[1757011013163,0.20619534,843.95,842.78,0.78834159]
[1757011013363,0.20619534,843.95,842.76,0.78834159]
[1757011013561,0.20619534,843.95,842.75,0.78834159]
[1757011014159,0.20619534,843.95,842.76,0.78834159]
[1757011016068,0.20619534,843.95,842.77,0.78834159]
[1757011016465,0.20619534,843.95,842.76,0.78834159]
[1757011017170,0.20619534,843.95,842.77,0.78681436]
[1757011017967,0.20619534,843.95,842.78,0.78681436]
[1757011018270,0.20619534,843.95,842.79,0.78681436]
[1757011018569,0.20619534,843.95,842.78,0.78681436]
[1757011019165,0.20619534,843.95,841.58,0.20626072]
[1757011019166,0.20619534,843.95,842.79,0.78681436]
[1757011020270,0.20619534,843.95,842.84,0.78681436]
[1757011020867,0.20619534,843.95,842.83,0.78681436]
[1757011021473,0.20619534,843.95,842.84,0.78681436]
[1757011022373,0.20619534,843.95,842.83,0.78681436]
[1757011022669,0.20619534,843.95,842.84,0.78681436]
[1757011023070,0.20619534,843.95,842.85,0.78681436]
[1757011023274,0.20619534,843.95,842.66,1.0629753]
[1757011023469,0.20619534,843.95,842.86,0.7871124]
[1757011024473,0.20619534,843.95,842.87,0.7871124]
[1757011025672,0.20619534,843.95,842.77,0.7871124]
[1757011026677,0.20619534,843.95,842.78,0.7871124]
[1757011027384,0.20619534,843.95,842.82,0.7871124]
[1757011028378,0.20619534,843.95,842.84,0.7871124]
[1757011029478,0.20619534,843.95,842.86,0.7871124]
[1757011030477,0.20619534,843.95,842.88,0.7871124]
[1757011031482,0.20619534,843.95,842.91,0.7871124]
[1757011032381,0.20619534,843.95,842.94,0.7871124]
[1757011032778,0.20619534,843.95,842.91,0.7871124]
[1757011032982,0.20619534,843.95,842.9,0.7871124]
[1757011033183,0.20619534,843.95,842.88,0.7871124]
[1757011033380,0.20619534,843.95,842.91,0.7871124]
[1757011034002,0.20619534,843.95,842.92,0.79095695]
[1757011034586,0.20619534,843.95,842.95,0.79095695]
[1757011035286,0.20619534,843.95,842.96,0.79095695]
[1757011035486,0.20619534,843.95,843.0,0.79095695]
[1757011036487,0.20619534,843.95,843.05,0.79095695]
[1757011037385,0.20619534,843.95,843.06,0.79095695]
[1757011038390,0.20619534,843.95,843.07,0.79095695]
[1757011039389,0.20619534,843.95,843.08,0.79095695]
[1757011040385,0.20619534,843.95,843.1,0.79095695]
[1757011040585,0.20619534,843.95,842.89,1.0629753]
[1757011040586,0.20619534,843.95,843.08,0.79095695]
[1757011040789,0.20619534,843.95,843.07,0.79095695]
[1757011041391,0.20619534,843.95,843.08,0.79095695]
[1757011041593,0.20619534,843.95,842.84,0.79095695]
[1757011041890,0.20619534,843.95,842.83,0.79095695]
[1757011042485,0.20619534,843.95,842.84,0.79095695]
[1757011043290,0.20619534,843.95,842.86,0.79095695]
[1757011043491,0.20619534,843.95,842.88,0.79095695]
[1757011044388,0.20619534,843.95,842.89,0.79095695]
[1757011045489,0.20619534,843.95,842.91,0.79095695]
[1757011045786,0.20619534,843.95,842.9,0.79095695]
[1757011046590,0.20619534,843.95,842.91,0.79095695]
[1757011046987,0.20619534,843.95,842.93,0.79095695]
[1757011047392,0.20619534,843.95,842.94,0.79095695]
[1757011047588,0.20619534,843.95,842.95,0.79095695]
[1757011048394,0.20619534,843.95,843.01,0.79095695]
[1757011048593,0.20619534,843.95,843.07,0.79095695]
[1757011049195,0.20619534,843.95,843.09,0.79095695]
[1757011049393,0.20619534,843.95,843.1,0.79095695]
[1757011050891,0.20619534,843.95,843.16,0.79095695]
[1757011051297,0.20619534,843.95,843.17,0.79095695]
[1757011051496,0.20619534,843.95,843.22,0.79095695]
[1757011053396,0.20619534,843.95,843.23,0.79095695]
[1757011055300,0.20619534,843.95,843.24,0.79095695]
[1757011056701,0.20619534,843.95,843.26,0.79095695]
[1757011060703,0.20619534,843.95,843.27,0.79095695]
[1757011060998,0.20619534,843.95,843.25,0.79095695]
[1757011064303,0.20619534,843.95,843.26,0.79095695]
[1757011067607,0.20619534,843.95,843.25,0.79095695]
[1757011069807,0.20619534,843.95,843.24,0.79095695]
[1757011070102,0.20619534,843.95,843.22,0.79095695]
[1757011071204,0.20619534,843.95,843.23,0.79095695]
[1757011073106,0.20619534,843.95,843.22,0.79095695]
[1757011074008,0.20619534,843.95,843.21,0.79095695]
[1757011074706,0.20619534,843.95,843.22,0.79095695]
[1757011074911,0.20619534,843.95,843.23,0.79095695]
[1757011075711,0.20619534,843.95,843.25,0.79095695]
[1757011076207,0.20619534,843.95,843.24,0.79095695]
[1757011076605,0.20619534,843.95,843.25,0.79095695]
[1757011078308,0.20619534,843.95,843.26,0.79095695]
[1757011079913,0.20619534,843.95,843.25,0.79095695]
[1757011080412,0.20619534,843.95,843.24,0.79095695]
[1757011080812,0.20619534,843.95,843.18,0.79095695]
[1757011082207,0.20619534,843.95,843.19,0.79095695]
[1757011083412,0.20619534,843.95,843.18,0.79095695]
[1757011083712,0.20619534,843.95,843.19,0.79095695]
[1757011084911,0.20619534,843.95,843.2,0.79095695]
[1757011087007,0.20619534,843.95,843.21,0.79095695]
[1757011088009,0.20619534,843.95,843.2,0.79095695]
[1757011088318,0.20619534,843.95,843.21,0.79095695]
[1757011090313,0.20619534,843.95,843.2,0.79095695]
[1757011091114,0.20619534,843.95,843.21,0.79095695]
[1757011091410,0.20619534,843.95,843.02,1.0629753]
[1757011091411,0.20619534,843.95,843.22,0.79095695]
[1757011091810,0.20619534,843.95,843.28,0.79095695]
[1757011092814,0.20619534,843.95,842.16,2.6574383]
[1757011092815,0.20619534,843.95,843.35,0.79095695]
[1757011094916,0.20619534,843.95,843.36,0.79095695]
[1757011095214,0.20619534,843.95,843.4,0.79095695]
[1757011095911,0.20619534,843.95,843.41,0.79095695]
[1757011096612,0.20619534,843.95,843.42,0.79095695]
[1757011097417,0.20619534,843.95,843.43,0.79095695]
[1757011101520,0.20619534,843.95,843.44,0.79095695]
[1757011103428,0.20619534,843.95,842.58,2.6574383]
[1757011103429,0.20619534,843.95,843.46,0.79095695]
[1757011104631,0.20619534,843.95,843.47,0.79095695]
[1757011107728,0.78927192,844.21,843.48,0.79095695]